fUST/lending_fUST_20240121
["ID","MTS","AMOUNT","RATE_DAILY","PERIOD"]
[312329652,1705780244088,-257.87098016,0.00041095,31]
[312329654,1705780244097,-493.7697776,0.00041095,31]
[312329852,1705780246745,-6.2302224,0.00041095,31]
[312329853,1705780246755,-500.0,0.00041095,31]
[312329854,1705780246764,-500.0,0.00041095,31]
[312329855,1705780246773,-500.0,0.00041095,31]
[312329856,1705780246783,-566.56018408,0.00041095,31]
[312329857,1705780246792,-539.35675995,0.00041095,31]
[312329858,1705780246801,-500.0,0.00041095,31]
[312329859,1705780246811,-636.01619355,0.00041095,31]
[312329860,1705780246820,-195.38066495,0.00041095,7]
[312329861,1705780246832,-370.78808,0.00041095,7]
[312329862,1705780246841,-266.11925142,0.00041095,31]
[312330475,1705781437935,-158.61013242,0.00020382,2]
[312330477,1705781437944,-166.94378863,0.00020383,2]
[312330479,1705781437954,-1589.56066404,0.00020383,2]
[312330480,1705781437962,-154.78330338,0.00020384,4]
[312330482,1705781437972,-2073.0632604,0.00020385,2]
[312330484,1705781437981,-24900.0,0.00020387,2]
[312330486,1705781437990,-22660.14150878,0.00021,2]
[312330488,1705781438000,-9720.45400092,0.00021,2]
[312330489,1705781438009,-9857.00979023,0.00021,2]
[312330491,1705781438019,-194.2806405,0.00021,2]
[312330493,1705781438028,-1225.6219088,0.00022221,2]
[312330495,1705781438039,-9057.65814055,0.00022221,2]
[312330497,1705781438048,-1570.89243892,0.00023,2]
[312330498,1705781438057,-200.0,0.00023099,7]
[312330500,1705781438068,-280.0,0.00025409,7]
[312330502,1705781438077,-391.0,0.0002795,15]
[312330504,1705781438086,-1137.62,0.00028375,3]
[312330506,1705781438095,-1986.04,0.00028375,3]
[312330508,1705781438104,-1655.03,0.00028375,3]
[312330510,1705781438112,-1379.2,0.00028375,3]
[312330512,1705781438122,-561.46174088,0.0002838,2]
[312330514,1705781438131,-4012.5594856,0.00028383,2]
[312330516,1705781438141,-20487.60579978,0.00028384,2]
[312330518,1705781438149,-25318.74979221,0.00028385,7]
[312330520,1705781438158,-158.170442,0.00028767,2]
[312330522,1705781438167,-158.238136,0.00028767,2]
[312330524,1705781438176,-244.03237749,0.00030136,4]
[312330526,1705781438185,-158.170442,0.00030137,2]
[312330528,1705781438194,-200.0,0.00030745,15]
[312330529,1705781438203,-348.0,0.00030745,15]
[312330530,1705781438213,-155.0,0.00031,2]
[312330531,1705781438223,-238.14143998,0.00031,4]
[312330532,1705781438231,-158.170442,0.00031507,2]
[312330533,1705781438240,-1045.90652664,0.00031966,4]
[312330534,1705781438249,-154.93802479,0.00031998,4]
[312330535,1705781438258,-246.01934779,0.00031998,4]
[312330536,1705781438267,-154.93802479,0.00031998,4]
[312330538,1705781438276,-157.01387924,0.00031998,4]
[312330540,1705781438286,-14014.61522884,0.00031998,4]
[312330542,1705781438294,-178.19682148,0.00031998,4]
[312330544,1705781438303,-2823.15062971,0.00031998,4]
[312330546,1705781438313,-342.68202695,0.00031998,4]
[312330548,1705781438322,-1783.35451079,0.00031998,4]
[312330550,1705781438330,-1649.35504152,0.00031998,4]
[312330552,1705781438339,-260.43027978,0.00031998,4]
[312330554,1705781438349,-3439.02090908,0.00031998,4]
[312330556,1705781438358,-154.96023507,0.00031998,4]
[312330558,1705781438366,-663.3841438,0.00031998,4]
[312330560,1705781438376,-221.65176998,0.00031998,4]
[312330562,1705781438385,-6148.34366666,0.00031998,4]
[312330564,1705781438394,-2170.3168048,0.00031998,4]
[312330566,1705781438403,-678.89502784,0.00031998,4]
[312330568,1705781438412,-824.03065617,0.00031998,4]
[312330570,1705781438421,-1459.60251302,0.00031998,4]
[312330572,1705781438429,-164.91120392,0.00031998,4]
[312330574,1705781438438,-522.93963422,0.00031998,4]
[312330576,1705781438447,-1279.77469611,0.00031998,4]
[312330578,1705781438456,-2535.82639996,0.00031998,4]
[312330580,1705781438465,-7957.69581218,0.00031998,2]
[312330582,1705781438474,-748.2997631,0.00031998,4]
[312330584,1705781438483,-285201.86665853,0.00032,4]
[312330586,1705781438492,-154.78330338,0.00032,4]
[312330588,1705781438501,-155.0,0.0003237,2]
[312330590,1705781438510,-1094.47895322,0.000325,20]
[312330591,1705781438519,-500.0,0.00032616,2]
[312330592,1705781438528,-393.1441642,0.00032616,2]
[312330594,1705781438537,-407.97997867,0.00032616,2]
[312330596,1705781438549,-571.76180693,0.00032616,2]
[312330600,1705781438696,-500.0,0.00032616,2]
[312330601,1705781438706,-500.0,0.00032616,2]
[312330602,1705781438716,-338.11679041,0.00032616,2]
[312330603,1705781438725,-191.20728432,0.00032616,2]
[312330604,1705781438734,-500.0,0.00032616,2]
[312330605,1705781438743,-500.0,0.00032616,2]
[312330606,1705781438752,-500.0,0.00032616,2]
[312330607,1705781438762,-500.0,0.00032616,2]
[312330608,1705781438771,-500.0,0.00032616,2]
[312330609,1705781438780,-500.0,0.00032616,2]
[312330610,1705781438788,-500.0,0.00032616,2]
[312330611,1705781438797,-500.0,0.00032616,2]
[312330612,1705781438806,-500.0,0.00032616,2]
[312330613,1705781438815,-500.0,0.00032616,2]
[312330614,1705781438824,-500.0,0.00032616,2]
[312330615,1705781438834,-500.0,0.00032616,2]
[312330616,1705781438843,-535.28443909,0.00032619,2]
[312330617,1705781438852,-411.38440691,0.00032619,2]
[312330618,1705781438861,-5898.4691884,0.00032619,2]
[312330619,1705781438870,-498.41534208,0.00032619,2]
[312330620,1705781438879,-48231.93974122,0.00032733,6]
[312330621,1705781438889,-50000.0,0.00032733,6]
[312330622,1705781438898,-63770.32304675,0.00032733,6]
[312330623,1705781438907,-8880.12738315,0.00032733,4]
[312330624,1705781438916,-1408.88679825,0.00032733,4]
[312330625,1705781438926,-250.0,0.00032876,7]
[312330626,1705781438935,-158.170442,0.00032877,2]
[312330627,1705781438944,-154.78330338,0.00033,4]
[312330628,1705781438953,-2846.05665284,0.00033,2]
[312330629,1705781438962,-158.97429893,0.00033,2]
[312330630,1705781438971,-165.0,0.00033,2]
[312330631,1705781438981,-198.0,0.00033,2]
[312330632,1705781438990,-171.0,0.00033,2]
[312330633,1705781438999,-198.0,0.00033151,2]
[312330634,1705781439008,-155.0,0.0003374,2]
[312330635,1705781439017,-200.0,0.00033819,15]
[312330636,1705781439027,-200.0,0.00033819,15]
[312330637,1705781439036,-368.0,0.00033819,15]
[312330638,1705781439045,-1550.76333748,0.00034,3]
[312330639,1705781439055,-10990.39266955,0.00034,2]
[312330640,1705781439065,-500.0,0.00034246,7]
[312330641,1705781439074,-158.170442,0.00034247,2]
[312330642,1705781439084,-198.0,0.00034521,2]
[312330643,1705781439093,-158.238136,0.00034932,2]
[312330644,1705781439103,-154.78330338,0.00035,6]
[312330645,1705781439112,-591.88726683,0.00035,2]
[312330646,1705781439121,-3119.96924767,0.00035,20]
[312330647,1705781439131,-2085.08363542,0.00035,4]
[312330648,1705781439141,-154.78330338,0.00035,4]
[312330649,1705781439150,-548.14664073,0.00035,7]
[312330650,1705781439160,-2356.16401148,0.00035,2]
[312330651,1705781439170,-31980.30894113,0.00035,4]
[312330652,1705781439180,-155.23866682,0.00035,2]
[312330653,1705781439189,-333.12649891,0.00035,4]
[312330654,1705781439198,-155.0,0.0003511,2]
[312330655,1705781439208,-500.0,0.000353,7]
[312330656,1705781439217,-4425.50824305,0.000355,14]
[312330657,1705781439226,-500.0,0.000356,7]
[312330658,1705781439235,-750.0,0.00035616,7]
[312330659,1705781439245,-500.0,0.00035616,2]
[312330660,1705781439254,-500.0,0.00035616,2]
[312330661,1705781439263,-500.0,0.00035616,2]
[312330662,1705781439272,-500.0,0.00035616,2]
[312330663,1705781439281,-500.0,0.00035616,2]
[312330664,1705781439290,-500.0,0.00035616,2]
[312330665,1705781439299,-500.0,0.00035616,2]
[312330666,1705781439308,-291.50651603,0.00035616,2]
[312330667,1705781439317,-158.170442,0.00035616,2]
[312330668,1705781439326,-182.36949,0.00035616,120]
[312330669,1705781439335,-150.77383924,0.00035773,2]
[312330670,1705781439344,-250.11570644,0.00035773,2]
[312330671,1705781439353,-1000.0,0.000359,7]
[312330672,1705781439362,-5000.0,0.00035956,2]
[312330673,1705781439371,-1000.0,0.00036,2]
[312330674,1705781439380,-1000.0,0.000362,7]
[312330675,1705781439389,-160.81104418,0.00036205,2]
[312330676,1705781439398,-204.0,0.00036247,2]
[312330677,1705781439407,-301.54767848,0.00036374,4]
[312330678,1705781439416,-155.0,0.0003648,2]
[312330679,1705781439425,-1000.0,0.000365,7]
[312330680,1705781439434,-1000.0,0.000368,7]
[312330681,1705781439442,-154.78330338,0.00036986,7]
[312330682,1705781439451,-603.09535696,0.00036986,7]
[312330683,1705781439460,-1000.0,0.00036986,7]
[312330684,1705781439469,-158.170442,0.00036986,2]
[312330685,1705781439478,-154.78330338,0.00037,4]
[312330686,1705781439487,-150.0,0.00037,30]
[312330687,1705781439496,-302.0,0.0003718,2]
[312330688,1705781439505,-300.0,0.0003718,2]
[312330689,1705781439514,-150.0,0.000372,30]
[312330690,1705781439524,-200.0,0.00037201,15]
[312330691,1705781439534,-200.0,0.00037201,15]
[312330692,1705781439544,-200.0,0.00037201,15]
[312330693,1705781439559,-283.0,0.00037201,15]
[312330694,1705781439570,-212.642763,0.000374,30]
[312330695,1705781439579,-166.74380429,0.00037607,4]
[312330696,1705781439589,-263.54542461,0.0003785,2]
[312330697,1705781439598,-1206.19071393,0.00037922,30]
[312330698,1705781439607,-2139.23248446,0.00038,4]
[312330699,1705781439616,-3679.38300141,0.00038,4]
[312330700,1705781439627,-2000.0,0.00038,4]
[312330701,1705781439638,-1250.0,0.00038356,7]
[312330702,1705781439647,-158.170442,0.00038356,2]
[312330703,1705781439655,-198.0,0.00038663,14]
[312330704,1705781439665,-660.24671343,0.000389,2]
[312330705,1705781439674,-243.452,0.00038918,2]
[312330706,1705781439682,-3132.32002096,0.0003904,5]
[312330707,1705781439691,-245.17457541,0.000396,30]
[312330708,1705781439700,-1500.0,0.00039726,7]
[312330709,1705781439709,-158.170442,0.00039726,2]
[312330710,1705781439719,-159.57600549,0.00039753,7]
[312330711,1705781439728,-333.2863,0.00039962,7]
[312330712,1705781439738,-5769.07722314,0.0003999,4]
[312330713,1705781439747,-154.78330338,0.0004,7]
[312330714,1705781439756,-862.37799607,0.0004,4]
[312330715,1705781439767,-154.78330338,0.0004,4]
[312330716,1705781439776,-1279.9341791,0.0004,4]
[312330717,1705781439785,-738.23836783,0.0004,2]
[312330718,1705781439794,-592.4338243,0.0004,30]
[312330719,1705781439804,-290.53429954,0.0004,4]
[312330720,1705781439813,-299.65506824,0.0004,2]
[312330721,1705781439822,-5000.0,0.0004,2]
[312330722,1705781439832,-517.49938136,0.0004,5]
[312330723,1705781439841,-719.57029108,0.0004,2]
[312330724,1705781439851,-6341.24667327,0.0004,15]
[312330752,1705781447935,-12552.14032395,0.0004,15]
[312330753,1705781447945,-2717.25590153,0.0004,2]
[312330754,1705781447954,-500.0,0.0004,10]
[312330755,1705781447963,-5501.78845682,0.0004,10]
[312330836,1705782638213,-154.78330338,0.00028717,4]
[312330838,1705782638223,-874.04705685,0.00028718,2]
[312330840,1705782638232,-165.08113318,0.00028719,2]
[312330842,1705782638241,-1589.56066404,0.00028719,2]
[312330844,1705782638250,-158.61013242,0.0002872,2]
[312330846,1705782638259,-158.178903,0.00028767,2]
[312330848,1705782638268,-158.204292,0.00028767,2]
[312330849,1705782638278,-2102.56602861,0.00028977,2]
[312330851,1705782638287,-2073.0632604,0.00028977,2]
[312330853,1705782638296,-24900.0,0.00028979,2]
[312330855,1705782638305,-244.0419666,0.0003,4]
[312330857,1705782638314,-192.0,0.0003,2]
[312330859,1705782638323,-158.178903,0.00030528,2]
[312330861,1705782638332,-155.0,0.00031,2]
[312330862,1705782638341,-424.75135024,0.00031,2]
[312330864,1705782638350,-238.14143998,0.00031,4]
[312330866,1705782638360,-200.0,0.00031876,15]
[312330868,1705782638369,-1045.90652664,0.00031966,4]
[312330870,1705782638379,-5629.96,0.00031988,3]
[312330872,1705782638388,-4691.63,0.00031988,3]
[312330874,1705782638397,-424.370887,0.00031998,2]
[312330876,1705782638406,-155.01548915,0.00031998,2]
[312330877,1705782638415,-748.2997631,0.00031998,4]
[312330879,1705782638425,-2535.82639996,0.00031998,4]
[312330881,1705782638434,-7957.69581218,0.00031998,2]
[312330883,1705782638443,-1279.77469611,0.00031998,4]
[312330885,1705782638453,-164.91120392,0.00031998,4]
[312330887,1705782638462,-522.93963422,0.00031998,4]
[312330888,1705782638473,-1459.60251302,0.00031998,4]
[312330890,1705782638482,-824.03065617,0.00031998,4]
[312330892,1705782638491,-678.89502784,0.00031998,4]
[312330894,1705782638501,-2170.3168048,0.00031998,4]
[312330896,1705782638510,-663.3841438,0.00031998,4]
[312330898,1705782638519,-6148.34366666,0.00031998,4]
[312330900,1705782638528,-260.43027978,0.00031998,4]
[312330902,1705782638537,-154.96023507,0.00031998,4]
[312330903,1705782638547,-1649.35504152,0.00031998,4]
[312330905,1705782638558,-342.68202695,0.00031998,4]
[312330907,1705782638567,-3439.02090908,0.00031998,4]
[312330909,1705782638576,-1783.35451079,0.00031998,4]
[312330911,1705782638586,-178.19682148,0.00031998,4]
[312330913,1705782638595,-246.01934779,0.00031998,4]
[312330915,1705782638604,-154.93802479,0.00031998,4]
[312330917,1705782638613,-14014.61522884,0.00031998,4]
[312330918,1705782638622,-157.01387924,0.00031998,4]
[312330920,1705782638631,-154.93802479,0.00031998,4]
[312330922,1705782638639,-236.22782048,0.00031999,2]
[312330924,1705782638648,-285201.86665853,0.00032,4]
[312330926,1705782638657,-154.78330338,0.00032,4]
[312330928,1705782638666,-1000.0,0.00032,32]
[312330929,1705782638675,-158.178903,0.0003229,2]
[312330931,1705782638684,-155.0,0.0003237,2]
[312330933,1705782638693,-1094.47895322,0.000325,20]
[312330935,1705782638701,-196.48957694,0.00032619,2]
[312330937,1705782638711,-5366.08831898,0.00032619,2]
[312330939,1705782638721,-195.89733662,0.00032619,2]
[312330940,1705782638730,-1474.6172971,0.00032619,2]
[312330941,1705782638739,-500.0,0.00032732,2]
[312330942,1705782638748,-393.1441642,0.00032732,2]
[312330943,1705782638758,-407.97997867,0.00032732,2]
[312330944,1705782638767,-500.0,0.00032732,2]
[312330945,1705782638777,-500.0,0.00032732,2]
[312330946,1705782638786,-500.0,0.00032732,2]
[312330947,1705782638794,-484.81226959,0.00032732,2]
[312330948,1705782638803,-212.45088213,0.00032732,2]
[312330949,1705782638812,-500.0,0.00032732,2]
[312330950,1705782638821,-500.0,0.00032732,2]
[312330951,1705782638830,-500.0,0.00032732,2]
[312330952,1705782638838,-500.0,0.00032732,2]
[312330953,1705782638847,-500.0,0.00032732,2]
[312330954,1705782638857,-500.0,0.00032732,2]
[312330955,1705782638866,-500.0,0.00032732,2]
[312330956,1705782638875,-500.0,0.00032732,2]
[312330957,1705782638884,-449.44879928,0.00032732,2]
[312330958,1705782638893,-500.0,0.00032732,2]
[312330959,1705782638902,-500.0,0.00032732,2]
[312330960,1705782638911,-500.0,0.00032732,2]
[312330961,1705782638920,-500.0,0.00032732,2]
[312330962,1705782638930,-500.0,0.00032732,2]
[312330963,1705782638940,-85227.15298749,0.00032733,6]
[312330964,1705782638950,-21636.07302086,0.00032733,4]
[312330965,1705782638959,-21874.54489336,0.00032733,5]
[312330966,1705782638969,-9877.18422146,0.00032733,4]
[312330967,1705782638978,-250.0,0.00032876,7]
[312330968,1705782638987,-154.78330338,0.00033,4]
[312330969,1705782638996,-165.0,0.00033,2]
[312330970,1705782639005,-1000.0,0.00033,33]
[312330971,1705782639015,-171.0,0.00033,2]
[312330972,1705782639025,-660.24671343,0.000335,2]
[312330973,1705782639034,-155.0,0.0003374,2]
[312330974,1705782639043,-1000.0,0.00034,34]
[312330975,1705782639053,-158.178903,0.00034051,2]
[312330976,1705782639062,-500.0,0.00034246,7]
[312330977,1705782639071,-2356.16401148,0.00035,2]
[312330978,1705782639080,-154.78330338,0.00035,2]
[312330979,1705782639089,-31980.30894113,0.00035,4]
[312330980,1705782639098,-154.78330338,0.00035,6]
[312330981,1705782639109,-154.78330338,0.00035,4]
[312330982,1705782639118,-333.12649891,0.00035,4]
[312330983,1705782639127,-2085.08363542,0.00035,4]
[312330984,1705782639136,-591.88726683,0.00035,2]
[312330985,1705782639145,-3119.96924767,0.00035,20]
[312330986,1705782639154,-1000.0,0.00035,35]
[312330987,1705782639164,-280.0,0.00035063,15]
[312330988,1705782639173,-155.0,0.0003511,2]
[312330989,1705782639183,-500.0,0.000353,7]
[312330990,1705782639192,-4425.50824305,0.000355,14]
[312330991,1705782639201,-500.0,0.000356,7]
[312330992,1705782639210,-750.0,0.00035616,7]
[312330994,1705782639221,-500.0,0.00035616,2]
[312330995,1705782639230,-500.0,0.00035616,2]
[312330996,1705782639240,-500.0,0.00035616,2]
[312330997,1705782639249,-500.0,0.00035616,2]
[312330998,1705782639258,-500.0,0.00035616,2]
[312331000,1705782639267,-500.0,0.00035616,2]
[312331002,1705782639278,-500.0,0.00035616,2]
[312331003,1705782639287,-291.50651603,0.00035616,2]
[312331005,1705782639297,-182.36949,0.00035616,120]
[312331007,1705782639307,-160.81104418,0.00035749,2]
[312331009,1705782639316,-158.178903,0.00035812,2]
[312331010,1705782639325,-1000.0,0.000359,7]
[312331011,1705782639334,-5000.0,0.00035956,2]
[312331013,1705782639343,-154.78330338,0.00036,7]
[312331014,1705782639352,-1000.0,0.00036,36]
[312331016,1705782639362,-1000.0,0.000362,7]
[312331017,1705782639371,-155.0,0.0003648,2]
[312331018,1705782639380,-1000.0,0.000365,7]
[312331019,1705782639389,-1000.0,0.000368,7]
[312331020,1705782639399,-1000.0,0.00036986,7]
[312331021,1705782639408,-154.78330338,0.00037,4]
[312331022,1705782639418,-1000.0,0.00037,37]
[312331023,1705782639427,-150.0,0.00037,30]
[312331024,1705782639436,-302.0,0.0003718,2]
[312331025,1705782639445,-300.0,0.0003718,2]
[312331026,1705782639454,-150.0,0.000372,30]
[312331027,1705782639463,-212.642763,0.000374,30]
[312331028,1705782639474,-158.178903,0.00037573,2]
[312331029,1705782639483,-1000.0,0.00037612,10]
[312331030,1705782639492,-1000.0,0.00037612,10]
[312331031,1705782639502,-1000.0,0.00037612,10]
[312331032,1705782639512,-5000.0,0.00037676,7]
[312331033,1705782639521,-1000.0,0.00037685,10]
[312331034,1705782639530,-36534.76323638,0.00037786,7]
[312331035,1705782639544,-13465.23676362,0.00037786,7]
[312331036,1705782639553,-6417.46289684,0.00037815,7]
[312331083,1705782643779,-158.178903,0.00028767,2]
[312331084,1705782643789,-21754.544465,0.00037815,7]
[312331085,1705782643836,-5446.89760139,0.00037815,7]
[312331100,1705782644306,-1450.0,0.00037815,7]
[312331127,1705782647103,-158.61013242,0.00028716,2]
[312331128,1705782647113,-692.88020967,0.00037815,7]
[312331129,1705782647124,-628.869997,0.00037815,7]
[312331130,1705782647135,-7071.99755838,0.00037815,7]
[312331148,1705783585854,-154.75239617,0.00021997,4]
[312331149,1705783585874,-158.61013242,0.00021997,2]
[312331150,1705783585894,-154.75239617,0.00021998,2]
[312331151,1705783585915,-1598.88507524,0.00021998,2]
[312331153,1705783604096,-312.55318982,0.00021998,2]
[312331155,1705783634102,-874.04705685,0.00021997,2]
[312331156,1705783634125,-924.00373053,0.00021998,2]
[312331157,1705783634145,-292.78022956,0.00022,4]
[312331158,1705783634165,-154.75239617,0.00027092,4]
[312331159,1705783634186,-158.18398,0.00028767,2]
[312331160,1705783634207,-158.139416,0.00028767,2]
[312331161,1705783634231,-985.52879445,0.00030102,4]
[312331162,1705783634251,-4012.5594866,0.00030102,4]
[312331163,1705783634271,-678.35754423,0.00030102,4]
[312331164,1705783634292,-213.10382474,0.00030102,4]
[312331165,1705783634313,-154.75239617,0.00030102,4]
[312331166,1705783634334,-1933.16049097,0.00030102,4]
[312331167,1705783638090,-99.94948467,0.00030102,4]
[312331168,1705783638111,-1703.5470231,0.00030103,4]
[312331169,1705783638311,-378.21046939,0.00030104,2]
[312331228,1705783832192,-154.75239617,0.00028792,4]
[312331230,1705783832201,-158.61013242,0.00028793,2]
[312331232,1705783832211,-24900.0,0.00029486,2]
[312331233,1705783832220,-980.8946807,0.00030104,4]
[312331235,1705783832229,-4321.29306998,0.00030104,4]
[312331236,1705783832238,-283.12887752,0.00030104,3]
[312331237,1705783832247,-2824.94476013,0.00030734,4]
[312331238,1705783832257,-155.0,0.00031,2]
[312331239,1705783832266,-238.14143998,0.00031,4]
[312331240,1705783832277,-158.18398,0.00031849,2]
[312331241,1705783832286,-155.79751343,0.000319,2]
[312331242,1705783832296,-1045.90652664,0.00031966,4]
[312331243,1705783832305,-5629.96,0.00031989,3]
[312331244,1705783832314,-710.35355073,0.00031996,4]
[312331245,1705783832324,-157.64272796,0.00031996,4]
[312331246,1705783832333,-1279.77469611,0.00031996,4]
[312331247,1705783832342,-1497.88502726,0.00031997,4]
[312331248,1705783832351,-236.22782048,0.00031998,2]
[312331249,1705783832361,-260.43027978,0.00031998,4]
[312331250,1705783832370,-342.68202695,0.00031998,4]
[312331251,1705783832379,-154.96023507,0.00031998,4]
[312331252,1705783832388,-178.19682148,0.00031998,4]
[312331253,1705783832398,-154.93802479,0.00031998,4]
[312331254,1705783832406,-246.01934779,0.00031998,4]
[312331255,1705783832415,-1649.35504152,0.00031998,4]
[312331256,1705783832425,-1783.35451079,0.00031998,4]
[312331257,1705783832433,-522.93963422,0.00031998,4]
[312331258,1705783832442,-6148.34366666,0.00031998,4]
[312331259,1705783832451,-1459.60251302,0.00031998,4]
[312331260,1705783832460,-748.2997631,0.00031998,4]
[312331261,1705783832469,-110.1831467,0.00031998,2]
[312331326,1705783838206,-7847.51266548,0.00031998,2]
[312331328,1705783838215,-678.89502784,0.00031998,4]
[312331330,1705783838224,-424.370887,0.00031998,2]
[312331332,1705783838234,-663.3841438,0.00031998,4]
[312331334,1705783838243,-2170.3168048,0.00031998,4]
[312331336,1705783838253,-164.91120392,0.00031998,4]
[312331338,1705783838262,-155.01548915,0.00031998,2]
[312331339,1705783838272,-824.03065617,0.00031998,4]
[312331342,1705783838284,-2535.82639996,0.00031998,4]
[312331344,1705783838295,-154.93802479,0.00031999,4]
[312331346,1705783838306,-157.01387924,0.00031999,4]
[312331348,1705783838315,-14014.61522884,0.00031999,4]
[312331350,1705783838324,-285201.86665853,0.00032,4]
[312331352,1705783838334,-154.78330338,0.00032,4]
[312331353,1705783838342,-155.0,0.0003237,2]
[312331355,1705783838353,-1094.47895322,0.000325,20]
[312331358,1705783838362,-5897.37357806,0.00032775,2]
[312331360,1705783838371,-1474.34339452,0.00032775,2]
[312331362,1705783838380,-1673.24934351,0.00032775,2]
[312331364,1705783838388,-178.42814637,0.00032775,2]
[312331366,1705783838397,-174.80726185,0.00032775,2]
[312331368,1705783838406,-607.59815592,0.00032775,2]
[312331370,1705783838415,-500.0,0.00032789,2]
[312331372,1705783838425,-393.1441642,0.00032789,2]
[312331374,1705783838434,-407.97997867,0.00032789,2]
[312331376,1705783838444,-500.0,0.00032789,2]
[312331378,1705783838453,-500.0,0.00032789,2]
[312331380,1705783838463,-500.0,0.00032789,2]
[312331381,1705783838473,-500.0,0.00032789,2]
[312331383,1705783838482,-500.0,0.00032789,2]
[312331386,1705783838491,-212.45088213,0.00032789,2]
[312331387,1705783838499,-500.0,0.00032789,2]
[312331390,1705783838509,-500.0,0.00032789,2]
[312331392,1705783838518,-500.0,0.00032789,2]
[312331394,1705783838526,-500.0,0.00032789,2]
[312331396,1705783838535,-449.44879928,0.00032789,2]
[312331398,1705783838544,-500.0,0.00032789,2]
[312331400,1705783838554,-500.0,0.00032789,2]
[312331402,1705783838562,-500.0,0.00032789,2]
[312331404,1705783838571,-500.0,0.00032789,2]
[312331405,1705783838580,-484.81226959,0.00032789,2]
[312331407,1705783838589,-500.0,0.00032789,2]
[312331409,1705783838598,-500.0,0.00032789,2]
[312331411,1705783838607,-500.0,0.00032789,2]
[312331413,1705783838617,-50000.0,0.0003279,6]
[312331415,1705783838626,-74777.3164596,0.0003279,6]
[312331417,1705783838635,-20175.54967047,0.0003279,4]
[312331420,1705783838645,-8231.31296765,0.0003279,4]
[312331422,1705783838654,-4873.31861549,0.0003279,4]
[312331424,1705783838663,-250.0,0.00032876,7]
[312331426,1705783838672,-154.78330338,0.00033,4]
[312331428,1705783838681,-165.0,0.00033,2]
[312331430,1705783838690,-218.0,0.00033,2]
[312331431,1705783838699,-171.0,0.00033,2]
[312331433,1705783838708,-200.0,0.00033112,15]
[312331435,1705783838717,-218.0,0.00033151,2]
[312331437,1705783838726,-155.0,0.0003374,2]
[312331439,1705783838735,-154.78330338,0.00034034,2]
[312331441,1705783838745,-500.0,0.00034246,7]
[312331443,1705783838754,-218.0,0.00034521,2]
[312331445,1705783838764,-150.74373565,0.00034882,2]
[312331448,1705783838773,-158.18398,0.00034932,2]
[312331449,1705783838782,-158.139416,0.00034932,2]
[312331451,1705783838791,-31980.30894113,0.00035,4]
[312331453,1705783838800,-2356.16401148,0.00035,2]
[312331455,1705783838810,-333.12649891,0.00035,4]
[312331457,1705783838819,-154.78330338,0.00035,2]
[312331459,1705783838828,-154.78330338,0.00035,4]
[312331462,1705783838838,-154.78330338,0.00035,6]
[312331464,1705783838848,-591.88726683,0.00035,2]
[312331465,1705783838857,-2085.08363542,0.00035,4]
[312331467,1705783838866,-3119.96924767,0.00035,20]
[312331469,1705783838876,-3439.02090908,0.00035,4]
[312331471,1705783838885,-201.67735052,0.00035,2]
[312331474,1705783838894,-155.0,0.0003511,2]
[312331475,1705783838904,-500.0,0.000353,7]
[312331478,1705783838913,-4425.50824305,0.000355,14]
[312331480,1705783838922,-500.0,0.000356,7]
[312331481,1705783838931,-750.0,0.00035616,7]
[312331483,1705783838940,-500.0,0.00035616,2]
[312331485,1705783838949,-500.0,0.00035616,2]
[312331487,1705783838958,-500.0,0.00035616,2]
[312331489,1705783838966,-500.0,0.00035616,2]
[312331491,1705783838975,-500.0,0.00035616,2]
[312331493,1705783838984,-500.0,0.00035616,2]
[312331495,1705783838994,-500.0,0.00035616,2]